bitfinex/quotes_SOLUSD_20260226
["timestamp","ask_amount","ask_price","bid_price","bid_amount"]
[1772140040294,0.61467183,86.139,86.102,0.65792754]
[1772140042221,0.61467183,86.137,86.104,0.65792754]
[1772140042700,3.31035427,86.15,86.111,0.65792754]
[1772140042701,12.22339353,86.143,86.111,0.65792754]
[1772140043002,29.01634353,86.159,86.103,40.64899015]
[1772140043003,0.61467183,86.157,86.131,0.65792754]
[1772140043301,11.60685268,86.156,86.131,0.65792754]
[1772140043499,12.22152451,86.156,86.131,0.65792754]
[1772140044195,11.60712213,86.154,86.131,0.65792754]
[1772140044496,0.61467183,86.139,86.106,0.65792754]
[1772140045278,0.61467183,86.146,86.106,0.65792754]
[1772140045477,0.61467183,86.146,86.106,0.07764067]
[1772140046995,0.61467183,86.139,86.106,0.07764067]
[1772140048000,0.61467183,86.137,86.106,0.07764067]
[1772140051004,0.61467183,86.135,86.106,0.07764067]
[1772140052505,0.61467183,86.133,86.1,0.1]
[1772140052697,0.61467183,86.133,86.1,0.75792754]
[1772140052904,0.61467183,86.133,86.1,4.06828181]
[1772140053104,0.61467183,86.133,86.101,0.65792754]
[1772140054512,0.61467183,86.131,86.101,0.65792754]
[1772140055210,3.31035427,86.13,86.101,0.65792754]
[1772140055395,0.61467183,86.119,86.09,0.1]
[1772140055597,0.61467183,86.119,86.09,0.75792754]
[1772140056800,11.6119408,86.119,86.09,12.37362459]
[1772140057007,0.66292586,86.118,86.091,0.66885847]
[1772140059611,0.66292586,86.124,86.093,0.66885847]
[1772140062414,3.31035427,86.12,86.093,0.66885847]
[1772140062708,0.65004322,86.119,86.09,0.1]
[1772140063097,0.65004322,86.109,86.09,0.1]
[1772140064617,0.65004322,86.099,86.07,0.1]
[1772140064922,0.65004322,86.079,86.045,0.66945688]
[1772140065224,0.65004322,86.079,86.051,0.66945688]
[1772140065625,40.6466298,86.108,86.061,0.66945688]
[1772140065626,0.65004322,86.099,86.061,0.66945688]
[1772140065797,0.65004322,86.106,86.071,0.66945688]
[1772140066296,0.65004322,86.106,86.081,0.66945688]
[1772140066720,0.65004322,86.104,86.074,0.66945688]
[1772140068922,0.65004322,86.102,86.074,0.66945688]
[1772140070724,11.61399718,86.103,86.064,0.66945688]
[1772140070725,0.65004322,86.099,86.064,0.66945688]
[1772140071099,11.61467165,86.098,86.064,0.66945688]
[1772140071316,0.65004322,86.097,86.064,0.66945688]
[1772140071725,0.65004322,86.097,86.06,11.61970608]
[1772140072248,0.65004322,86.097,86.061,0.66945688]
[1772140072626,0.65004322,86.097,86.061,12.289122]
[1772140072919,0.65004322,86.097,86.062,0.66945688]
[1772140073703,12.26498468,86.096,86.064,0.66945688]
[1772140074020,0.65004322,86.095,86.064,0.66945688]
[1772140074532,0.65004322,86.117,86.08,3.32034249]
[1772140075327,0.71385724,86.109,86.07,3.32034249]
[1772140075824,0.71385724,86.107,86.071,11.61831511]
[1772140078028,0.71385724,86.105,86.071,11.61831511]
[1772140079428,0.71385724,86.103,86.071,11.61831511]
[1772140080537,0.71385724,86.12,86.09,3.32034249]
[1772140080711,0.71385724,86.133,86.11,3.32034249]
[1772140080916,0.71385724,86.133,86.1,3.32034249]
[1772140081634,0.71385724,86.133,86.101,11.61426696]
[1772140081932,3.32034249,86.15,86.101,11.61426696]
[1772140081933,0.71385724,86.131,86.101,11.61426696]
[1772140083331,0.71385724,86.119,86.047,0.28432314]
[1772140083633,3.32034249,86.12,86.047,0.28432314]
[1772140083634,0.71385724,86.117,86.08,3.32034249]
[1772140085540,0.71385724,86.115,86.081,11.61696541]
[1772140089339,0.71385724,86.115,86.081,40.65937895]
[1772140089639,0.71385724,86.115,86.091,0.02021486]
[1772140090035,0.72313649,86.109,86.073,11.61791089]
[1772140090237,0.72313649,86.109,86.073,40.6839681]
[1772140090442,0.72313649,86.109,86.074,0.02166547]
[1772140090627,0.72313649,86.109,86.081,0.02166547]
[1772140092045,0.72313649,86.107,86.081,0.02166547]
[1772140092941,0.72313649,86.114,86.081,0.02166547]
[1772140093948,0.72313649,86.121,86.091,0.02377951]
[1772140095129,0.72313649,86.119,86.091,0.02377951]
[1772140095748,0.72313649,86.119,86.083,0.0251487]
[1772140096544,0.72313649,86.128,86.091,0.02582153]
[1772140096733,46.40818127,86.192,86.111,0.02582153]
[1772140096734,0.72313649,86.136,86.111,0.02582153]
[1772140096931,0.72313649,86.143,86.111,0.02582153]
[1772140097133,0.72313649,86.143,86.12,3.32034249]
[1772140097651,0.72313649,86.142,86.11,3.34616402]
[1772140098145,0.72313649,86.142,86.111,0.02648663]
[1772140100350,0.72313649,86.156,86.13,3.32034249]
[1772140100851,0.72313649,86.156,86.12,3.32034249]
[1772140101246,11.6069874,86.155,86.121,11.61156976]
[1772140101553,0.72313649,86.154,86.121,11.61156976]
[1772140102054,0.72313649,86.154,86.12,14.93203098]
[1772140102436,0.72313649,86.149,86.115,11.61225905]
[1772140102837,0.72313649,86.149,86.111,11.6128756]
[1772140103337,0.72313649,86.147,86.111,11.6128756]
[1772140104055,3.32034249,86.14,86.102,11.6141232]
[1772140104236,0.72313649,86.139,86.102,11.6141232]
[1772140105355,0.72313649,86.137,86.091,0.03031983]
[1772140106737,0.72313649,86.129,86.09,8.88788232]
[1772140107242,0.72313649,86.119,86.082,11.61683046]
[1772140108640,0.72313649,86.117,86.082,11.61683046]
[1772140108841,0.72313649,86.117,86.09,8.88788232]
[1772140111850,0.72313649,86.117,86.1,8.88788232]
[1772140112540,0.72313649,86.129,86.1,8.88788232]
[1772140113061,0.72313649,86.129,86.094,0.03559374]
[1772140113062,0.72313649,86.129,86.075,0.03559374]
[1772140113359,0.72313649,86.129,86.08,8.88788232]
[1772140113664,0.72313649,86.129,86.061,3.69383402]
[1772140113665,0.72313649,86.129,86.09,8.88788232]
[1772140114451,0.72313649,86.127,86.088,11.61590716]
[1772140115051,0.72313649,86.127,86.09,8.88788232]
[1772140115254,40.63719115,86.128,86.068,0.0366931]
[1772140115255,0.72313649,86.119,86.068,0.0366931]
[1772140115458,0.72313649,86.119,86.08,8.88788232]
[1772140116961,0.71385724,86.117,86.09,8.88788232]
[1772140118965,0.71385724,86.117,86.091,11.61561603]
[1772140119764,0.71385724,86.115,86.086,11.61619012]
[1772140120173,0.71385724,86.115,86.09,8.88788232]
[1772140120968,0.71385724,86.115,86.1,8.88788232]
[1772140121677,0.71385724,86.115,86.091,11.61561603]
[1772140122861,58.03526231,86.155,86.091,11.61561603]
[1772140122862,0.71385724,86.128,86.1,8.88788232]
[1772140123058,0.71385724,86.126,86.1,8.88788232]
[1772140123365,0.71385724,86.126,86.092,11.61547802]
[1772140124671,0.71385724,86.124,86.092,11.61547802]
[1772140125173,0.71385724,86.124,86.09,8.88788232]
[1772140125354,0.71385724,86.124,86.09,3.31853844]
[1772140126771,0.71385724,86.122,86.087,11.61606921]
[1772140127878,0.71385724,86.109,86.07,3.31853844]
[1772140128547,0.71385724,86.109,86.08,3.31853844]
[1772140128751,0.71385724,86.115,86.091,0.04463061]
[1772140128963,0.71385724,86.128,86.1,3.31853844]
[1772140129269,0.71385724,86.127,86.088,0.04463061]
[1772140129457,0.71385724,86.127,86.09,3.31766636]
[1772140129650,0.71385724,86.119,86.082,0.04507967]
[1772140130363,0.71385724,86.119,86.081,11.61696541]
[1772140130674,0.71385724,86.119,86.077,11.6174836]
[1772140130971,0.71385724,86.109,86.07,3.31766636]
[1772140131174,0.71385724,86.109,86.071,0.04552357]
[1772140131367,0.71385724,86.109,86.072,0.04552357]
[1772140132472,11.6133228,86.108,86.072,0.04552357]
[1772140132773,0.71385724,86.107,86.072,0.04552357]
[1772140135170,116.09151006,86.139,86.071,11.61831511]
[1772140135171,0.71385724,86.115,86.081,0.04724876]
[1772140136778,0.71385724,86.115,86.08,3.31766636]
[1772140137375,0.71385724,86.113,86.081,11.61696541]
[1772140137579,0.71385724,86.113,86.082,0.04849134]
[1772140138467,0.71385724,86.113,86.09,3.31766636]
[1772140139176,0.71385724,86.113,86.082,0.04849134]
[1772140139657,0.71385724,86.111,86.082,0.04849134]
[1772140140167,0.71385724,86.111,86.07,11.6184337]
[1772140140370,0.71385724,86.111,86.081,0.04929612]
[1772140140573,0.71385724,86.115,86.091,0.04969159]
[1772140141680,12.32634719,86.115,86.091,0.04969159]
[1772140141873,0.71385724,86.123,86.092,0.05008252]
[1772140142665,0.71385724,86.123,86.1,3.31766636]
[1772140143785,0.71385724,86.123,86.101,11.61426696]
[1772140143987,0.71385724,86.123,86.101,11.66511791]
[1772140144167,0.71385724,86.134,86.111,0.05085095]
[1772140145470,0.71385724,86.134,86.111,11.66376916]
[1772140145777,0.71385724,86.134,86.105,11.61367257]
[1772140147086,0.71385724,86.133,86.105,11.61367257]
[1772140147462,0.71385724,86.133,86.105,0.05233557]
[1772140149169,0.71385724,86.131,86.105,0.05233557]
[1772140149585,0.71385724,86.129,86.105,0.05233557]
[1772140154377,0.71385724,86.127,86.099,0.05477416]
[1772140154576,0.71385724,86.127,86.093,0.05510671]
[1772140154996,0.71385724,86.119,86.086,0.05510671]
[1772140156688,0.71385724,86.117,86.082,40.65890661]
[1772140156996,0.71385724,86.117,86.082,40.714667]
[1772140157375,0.71385724,86.117,86.09,3.31766636]
[1772140158800,0.71385724,86.117,86.091,11.61561603]
[1772140160898,0.71385724,86.115,86.091,11.61561603]
[1772140162201,0.71385724,86.115,86.082,29.04207615]
[1772140162496,0.71385724,86.115,86.074,0.05733003]
[1772140162694,0.71385724,86.115,86.08,3.31766636]
[1772140163499,0.71385724,86.113,86.081,11.61696541]
[1772140164478,0.71385724,86.113,86.077,11.6174308]
[1772140165583,0.71385724,86.111,86.078,0.05852206]
[1772140167794,0.71385724,86.109,86.081,0.05909774]
[1772140167997,0.71385724,86.109,86.08,3.31766636]
[1772140169698,0.71385724,86.109,86.081,0.05966027]
[1772140170500,0.71385724,86.107,86.08,3.31766636]
[1772140170797,0.71385724,86.107,86.076,0.0599367]
[1772140171698,0.71385724,86.107,86.07,3.31766636]
[1772140171899,40.6466298,86.108,86.006,46.50794281]
[1772140171900,0.71385724,86.079,86.045,11.62182578]
[1772140172602,0.71385724,86.077,86.045,0.06048006]
[1772140172988,0.71385724,86.077,86.039,0.06048006]
[1772140174105,0.71385724,86.069,86.04,0.1]
[1772140174306,0.71385724,86.069,86.04,3.41766636]
[1772140175804,0.71385724,86.069,86.041,11.62236608]
[1772140177394,0.73187472,86.067,86.04,0.1]
[1772140177990,0.73187472,86.065,86.04,0.1]
[1772140180088,0.71385724,86.063,86.04,0.1]
[1772140186196,0.71385724,86.061,86.04,0.1]
[1772140186619,0.71385724,86.066,86.045,0.06440323]
[1772140187319,0.71385724,86.066,86.04,3.48206959]
[1772140187519,0.71385724,86.066,86.04,0.1]
[1772140189612,0.71385724,86.065,86.04,0.1]
[1772140192219,11.61926008,86.064,86.04,0.1]
[1772140192521,0.71385724,86.063,86.04,0.1]
[1772140193822,0.71385724,86.063,86.031,11.62371703]
[1772140193823,0.69241314,86.059,86.031,11.62371703]
[1772140194729,0.69241314,86.059,86.021,0.11140077]
[1772140195610,0.69241314,86.059,86.019,29.06310017]
[1772140195827,0.69241314,86.057,86.02,0.39592626]
[1772140196530,0.69241314,86.057,86.02,3.71914664]
[1772140196729,0.69241314,86.057,86.021,11.62506829]
[1772140196919,0.69241314,86.049,86.021,11.62506829]
[1772140197627,0.69241314,86.065,86.031,0.11200089]
[1772140198322,0.69241314,86.049,86.021,11.62506829]
[1772140198929,0.69241314,86.047,86.01,29.45064867]
[1772140200328,0.69241314,86.047,86.01,29.16632553]
[1772140200519,0.69241314,86.047,86.01,0.1]
[1772140200722,11.6214206,86.048,86.011,0.72027086]
[1772140200916,11.6214206,86.048,86.013,0.72027086]
[1772140201423,3.32322038,86.04,86.013,0.72027086]
[1772140201727,3.32322038,86.04,86.01,0.1]
[1772140202257,11.6214206,86.048,85.991,0.72027086]
[1772140202258,0.28432314,86.044,85.991,0.72027086]
[1772140202524,3.32322038,86.02,85.99,0.1]
[1772140202727,3.32322038,86.02,85.98,0.1]
[1772140202728,0.69241314,85.999,85.98,0.1]
[1772140203341,0.69241314,85.989,85.97,0.1]
[1772140204739,0.69241314,85.999,85.97,0.82027086]
[1772140204915,0.69241314,85.999,85.97,12.45215208]
[1772140205117,0.69241314,85.997,85.97,0.1]
[1772140205913,0.69241314,85.989,85.952,52.34]
[1772140206237,0.69241314,85.979,85.953,11.63426523]
[1772140206525,0.69241314,85.979,85.95,0.1]
[1772140206526,0.69241314,85.969,85.95,0.1]
[1772140206730,0.69241314,85.969,85.943,24.48993866]
[1772140206929,3.32322038,85.99,85.95,3.32322038]
[1772140207132,3.32322038,85.99,85.951,0.72027086]
[1772140207713,11.62844783,85.996,85.951,0.72027086]
[1772140207714,3.32322038,85.97,85.951,0.72027086]
[1772140207930,3.32322038,85.98,85.951,0.72027086]
[1772140208433,3.32322038,85.97,85.943,36.12552421]
[1772140208733,3.32322038,85.97,85.943,24.48993866]
[1772140209136,0.69241314,85.99,85.945,0.72027086]
[1772140209340,0.69241314,85.989,85.951,0.72027086]
[1772140209642,0.69241314,85.995,85.961,0.72027086]
[1772140210045,0.76680912,86.002,85.971,0.74781495]
[1772140210335,0.76680912,85.989,85.951,0.74781495]
[1772140210841,0.76680912,85.989,85.961,0.74781495]
[1772140211039,12.39633561,85.989,85.961,0.74781495]
[1772140211219,0.76680912,85.989,85.963,0.74781495]
[1772140211420,0.76680912,85.979,85.943,24.48993866]
[1772140211924,0.76680912,85.987,85.95,3.32322038]
[1772140212124,3.32322038,85.99,85.95,3.32322038]
[1772140212125,0.76680912,85.994,85.95,3.32322038]
[1772140212727,0.76680912,85.994,85.944,0.28432314]
[1772140212922,0.76680912,85.994,85.96,3.32322038]
[1772140213229,0.76680912,85.993,85.961,11.63318248]
[1772140213429,0.76680912,85.993,85.962,0.74781495]
[1772140214437,0.76680912,85.991,85.962,0.74781495]
[1772140214638,0.76680912,85.991,85.964,0.74781495]
[1772140216437,0.76680912,85.989,85.951,0.74781495]
[1772140216626,0.76680912,85.979,85.936,0.74781495]
[1772140216827,0.76680912,85.969,85.944,11.63548357]
[1772140219345,0.76680912,85.967,85.943,24.48993866]
[1772140219642,0.76680912,85.959,85.943,24.48993866]
[1772140221955,0.76680912,85.957,85.943,24.48993866]
[1772140222246,0.76680912,85.968,85.944,0.74781495]
[1772140222429,46.49563372,86.03,85.951,0.74781495]
[1772140222430,0.76680912,85.989,85.951,0.74781495]
[1772140224354,0.76680912,85.987,85.953,0.74781495]
[1772140227557,0.76680912,85.987,85.943,24.48993866]
[1772140227558,0.76680912,85.984,85.943,23.12923795]
[1772140227859,0.76680912,85.984,85.83,69.90486139]
[1772140227860,6.06083995,85.866,85.85,1.00153201]
[1772140228042,3.32322038,85.91,85.861,0.90153201]
[1772140228362,3.32322038,85.9,85.871,0.90153201]
[1772140228967,3.32322038,85.91,85.871,0.90153201]
[1772140229445,3.32322038,85.9,85.871,0.90153201]
[1772140229761,11.64157906,85.899,85.871,0.90153201]
[1772140230338,40.74552671,85.899,85.871,0.90153201]
[1772140231237,58.19049489,85.925,85.85,3.42322038]
[1772140231238,11.63938512,85.916,85.873,0.90153201]
[1772140232058,3.32322038,85.93,85.89,3.32322038]
[1772140232262,3.32322038,85.93,85.891,0.90153201]
[1772140232959,3.32322038,85.94,85.891,0.90153201]
[1772140233559,11.6352128,85.946,85.911,0.90153201]
[1772140233758,40.72324482,85.946,85.911,0.90153201]
[1772140234055,11.6352128,85.946,85.911,12.54143345]
[1772140234262,11.6352128,85.946,85.912,0.90153201]
[1772140235161,11.6352128,85.946,85.913,0.90153201]
[1772140235367,3.32322038,85.94,85.913,0.90153201]
[1772140235856,11.6352128,85.946,85.913,0.90153201]
[1772140236667,29.08349939,85.96,85.91,3.32322038]
[1772140236668,11.63448106,85.952,85.915,0.97854981]
[1772140236856,11.63345315,85.959,85.921,0.97854981]
[1772140237383,3.32322038,85.97,85.931,0.97854981]
[1772140238068,3.32322038,85.98,85.933,0.97854981]
[1772140238360,0.27922708,85.979,85.933,0.97854981]
[1772140238553,3.32322038,85.97,85.933,0.97854981]
[1772140239142,3.32322038,85.99,85.951,0.97854981]
[1772140239666,11.62796613,86.0,85.961,1.08216212]
[1772140239864,3.32322038,86.0,85.961,1.08216212]
[1772140240162,3.32322038,86.0,85.96,3.32322038]
[1772140240163,11.62804218,85.999,85.963,1.08216212]
[1772140240468,3.32322038,85.98,85.963,1.08216212]
[1772140240669,3.32322038,85.99,85.963,1.08216212]
[1772140241348,8.91932922,85.99,85.963,1.08216212]
[1772140242467,11.62939445,85.989,85.963,1.08216212]
[1772140243666,0.47811138,85.988,85.954,1.08216212]
[1772140244569,11.62966494,85.987,85.954,1.08216212]
[1772140245263,11.62966494,85.987,85.956,1.08216212]
[1772140248559,0.663677,85.979,85.946,1.08216212]
[1772140249061,8.91932922,85.97,85.946,1.08216212]
[1772140249764,0.69337326,85.969,85.938,1.08216212]
[1772140250351,9.96317334,85.95,85.91,8.91932922]
[1772140250747,11.63250587,85.966,85.93,8.91932922]
[1772140252181,9.96317334,85.98,85.94,8.91932922]
[1772140252393,1.04384412,85.978,85.942,1.08216212]
[1772140253375,9.96520359,85.97,85.942,1.08216212]
[1772140254373,11.63209994,85.969,85.942,1.08216212]
[1772140254567,11.63154185,85.974,85.942,1.08216212]
[1772140254772,11.63154185,85.974,85.944,1.08216212]
[1772140256584,1.04384412,85.973,85.944,1.08216212]
[1772140257085,1.04384412,85.969,85.944,1.08216212]
[1772140257273,1.04384412,85.969,85.922,29.09586253]
[1772140257579,1.04384412,85.969,85.93,8.92135947]
[1772140258777,12.67595023,85.969,85.931,11.63724383]
[1772140259292,1.04384412,85.968,85.932,1.08216212]
[1772140260581,1.04384412,85.983,85.941,1.08216212]
[1772140260778,1.04384412,85.983,85.952,1.08216212]
[1772140261081,1.04384412,85.994,85.961,1.08216212]
[1772140261864,1.04384412,85.989,85.947,12.71718439]
[1772140262062,1.04384412,85.979,85.947,1.08216212]
[1772140262483,1.04384412,85.969,85.94,1.08216212]
[1772140262781,1.04384412,85.959,85.933,1.08216212]
[1772140263078,1.04384412,85.959,85.934,11.63683757]
[1772140263284,1.04384412,85.959,85.933,1.08216212]
[1772140263481,1.04384412,85.959,85.93,11.63737382]
[1772140263683,1.04384412,85.949,85.911,12.72211509]
[1772140263893,1.04384412,85.949,85.912,1.08216212]
[1772140264184,1.04384412,85.964,85.921,1.08216212]
[1772140264657,1.04384412,85.959,85.922,11.63846279]
[1772140264863,1.04384412,85.959,85.923,1.08216212]
[1772140265782,1.04384412,85.957,85.923,1.08216212]
[1772140265971,8.92535511,85.95,85.915,12.72145675]
[1772140266180,1.04384412,85.949,85.916,1.08216212]
[1772140266967,1.04384412,85.949,85.917,11.6391401]
[1772140267170,1.04384412,85.949,85.921,1.08216212]
[1772140267681,1.04384412,85.957,85.921,1.08216212]
[1772140270084,1.04384412,85.957,85.921,40.73509385]
[1772140270789,1.50040839,85.955,85.921,40.73509385]
[1772140271883,11.63412988,85.954,85.921,42.14406537]
[1772140272082,1.50040839,85.953,85.922,1.40897152]
[1772140272291,1.50040839,85.96,85.922,1.40897152]
[1772140274190,1.50040839,85.96,85.924,1.40897152]
[1772140275488,1.50040839,85.958,85.924,1.40897152]
[1772140276382,1.50040839,85.956,85.925,11.63805644]
[1772140276794,1.50040839,85.956,85.92,11.6386687]
[1772140277974,1.50040839,85.956,85.92,20.56402381]
[1772140278174,1.50040839,85.956,85.931,1.40897152]
[1772140279495,1.50040839,85.956,85.932,11.63710841]
[1772140280884,1.50040839,85.956,85.92,8.92535511]
[1772140280885,1.50040839,85.956,85.928,11.6376157]
[1772140281093,1.50040839,85.954,85.925,1.40897152]
[1772140281286,1.50040839,85.954,85.926,11.637921]
[1772140281680,1.50040839,85.952,85.921,11.63846561]
[1772140281999,1.50040839,85.952,85.922,1.40897152]
[1772140283001,11.63074704,85.979,85.931,1.40897152]
[1772140283301,40.70761464,85.979,85.931,1.40897152]
[1772140285005,1.50040839,85.976,85.933,1.40897152]
[1772140285797,1.50040839,85.976,85.94,3.3308607]
[1772140286106,1.50040839,85.976,85.941,1.40897152]
[1772140288707,1.50040839,85.974,85.941,1.40897152]
[1772140289406,1.50040839,85.974,85.943,1.40897152]
[1772140290297,1.50040839,85.969,85.943,1.40897152]
[1772140291802,1.50040839,85.967,85.943,1.40897152]
[1772140293399,1.50040839,85.959,85.922,1.40897152]
[1772140293705,1.50040839,85.959,85.923,1.40897152]
[1772140293909,1.50040839,85.949,85.919,1.40897152]
[1772140294410,1.50040839,85.949,85.911,11.63995297]
[1772140294793,40.71755973,85.958,85.912,1.40897152]
[1772140294794,1.50040839,85.939,85.912,1.40897152]
[1772140295909,1.50040839,85.937,85.906,1.40897152]
[1772140296116,1.50040839,85.929,85.894,1.40897152]
[1772140298007,1.71513265,85.927,85.896,1.76563123]
[1772140306523,1.88553358,85.925,85.898,1.79841578]
[1772140310104,1.88553358,85.939,85.911,1.79841578]
[1772140310303,1.88553358,85.944,85.911,1.79841578]
[1772140312225,3.3308607,85.95,85.913,1.79841578]
[1772140312226,1.88553358,85.942,85.913,1.79841578]
[1772140313216,1.88553358,85.964,85.913,1.79841578]
[1772140313411,1.88553358,85.978,85.941,1.79841578]
[1772140314624,1.88553358,85.976,85.943,1.79841578]
[1772140315303,3.33028606,85.96,85.924,1.79841578]
[1772140315621,1.88553358,85.959,85.926,1.79841578]
[1772140316922,1.88553358,85.957,85.928,1.79841578]
[1772140317623,1.88553358,85.957,85.931,1.79841578]
[1772140320828,1.88553358,85.979,85.941,1.79841578]
[1772140321630,1.88553358,85.979,85.951,1.79841578]
[1772140324704,1.88553358,85.991,85.96,3.33028606]
[1772140324905,1.88553358,85.991,85.961,1.79841578]
[1772140325305,1.88553358,85.997,85.971,1.79841578]
[1772140326317,3.33028606,85.99,85.959,1.79841578]
[1772140326510,1.88553358,85.989,85.961,1.79841578]
[1772140326710,1.88553358,85.989,85.963,1.79841578]
[1772140328430,1.88553358,85.989,85.965,1.79841578]
[1772140330219,1.88553358,85.989,85.967,2.13138784]
[1772140332740,1.88553358,85.989,85.969,2.13138784]
[1772140333034,11.62893851,85.993,85.969,2.13138784]
[1772140333533,13.66379821,85.993,85.969,2.13138784]
[1772140335634,2.0348597,85.992,85.971,2.13138784]
[1772140335839,2.0348597,86.004,85.971,2.13138784]
[1772140336135,2.0348597,85.999,85.971,2.13138784]
[1772140337217,2.0348597,85.999,85.965,2.13138784]
[1772140337530,2.0348597,85.989,85.965,2.13138784]
[1772140338633,2.0348597,85.987,85.965,2.13138784]
[1772140339234,2.0348597,85.987,85.966,11.63250587]
[1772140339528,2.0348597,85.987,85.967,2.13138784]
[1772140339732,2.0348597,85.992,85.967,2.13138784]
[1772140339937,11.62849056,85.996,85.967,2.13138784]
[1772140340123,2.0348597,85.999,85.967,2.13138784]
[1772140340527,2.0348597,85.999,85.969,2.13138784]
[1772140340829,11.62726044,86.005,85.971,2.13138784]
[1772140341030,14.95690728,86.01,85.971,2.13138784]
[1772140341334,2.0348597,86.012,85.981,2.13138784]
[1772140341722,11.62641987,86.011,85.981,2.13138784]
[1772140341928,2.0348597,86.029,85.991,2.13138784]
[1772140342514,3.69383402,86.057,85.968,40.71282337]
[1772140342515,2.0348597,86.042,86.011,2.13138784]
[1772140342732,2.0348597,86.049,86.021,2.13138784]
[1772140344538,11.6214206,86.048,86.021,2.13138784]
[1772140344724,2.0348597,86.047,86.021,2.13138784]
[1772140345541,2.0348597,86.047,86.022,2.13138784]
[1772140347342,2.0348597,86.045,86.022,2.13138784]
[1772140347523,2.0348597,86.039,86.01,2.13138784]
[1772140350243,2.0348597,86.037,86.01,2.13138784]
[1772140351239,2.0348597,86.037,86.011,13.75780771]
[1772140351420,2.0348597,86.037,86.012,2.13138784]
[1772140353937,3.33028606,86.04,85.994,2.13138784]
[1772140353938,2.0348597,86.019,85.994,2.13138784]
[1772140356043,2.0348597,86.029,85.996,2.13138784]
[1772140356242,2.0348597,86.029,86.001,2.13138784]
[1772140358541,2.1615605,86.035,86.003,2.25082896]
[1772140360648,13.89356982,86.034,86.005,2.18523891]
[1772140362137,2.27025811,86.034,86.005,2.18523891]
[1772140362341,2.27025811,86.051,86.011,2.18523891]
[1772140362743,11.62047527,86.055,86.01,3.33028606]
[1772140362744,2.27025811,86.049,86.013,2.18523891]
[1772140365046,11.6214206,86.048,86.014,11.62601436]
[1772140365233,2.27025811,86.047,86.015,2.18523891]
[1772140367533,13.89103798,86.053,86.021,2.18523891]
[1772140367938,11.62026365,86.057,86.021,2.18523891]
[1772140368653,13.89052176,86.057,86.021,2.18523891]
[1772140368854,2.27025811,86.056,86.021,2.18523891]
[1772140369738,11.62047527,86.055,86.022,11.62493315]
[1772140370249,2.27025811,86.054,86.023,2.18523891]
[1772140370450,2.27025811,86.049,86.018,2.18523891]
[1772140371660,13.89167871,86.048,86.02,2.18523891]
[1772140372349,2.27025811,86.047,86.02,2.18523891]
[1772140372656,2.27025811,86.039,86.01,2.18523891]
[1772140373754,11.62277133,86.038,86.011,11.62641987]
[1772140373954,2.27025811,86.037,86.011,11.62641987]
[1772140374256,2.27025811,86.037,86.011,13.81165878]
[1772140375242,2.27025811,86.037,86.012,2.18523891]
[1772140378458,2.27025811,86.036,86.014,2.18523891]
[1772140379162,2.27025811,86.036,86.0,11.62780663]
[1772140379456,40.67544481,86.047,86.0,13.81304554]
[1772140379457,2.27025811,86.029,86.0,13.81304554]
[1772140379661,2.27025811,86.029,86.001,2.18523891]
[1772140380146,2.27025811,86.049,86.011,2.18523891]
[1772140380458,2.27025811,86.048,86.011,2.18523891]
[1772140380759,2.27025811,86.048,86.013,2.18523891]
[1772140380960,2.27025811,86.039,86.013,2.18523891]
[1772140383258,2.27025811,86.038,86.013,2.18523891]
[1772140384562,2.27025811,86.019,85.98,2.18523891]
[1772140384742,2.27025811,86.017,85.981,2.18523891]
[1772140385346,2.27025811,86.017,85.983,2.18523891]
[1772140385666,13.89502507,86.024,85.991,2.18523891]
[1772140386259,2.27025811,86.024,85.991,2.18523891]
[1772140386467,3.32569309,86.03,85.982,40.70619431]
[1772140386468,2.27025811,86.03,86.001,2.18523891]
[1772140386947,2.27025811,86.029,86.001,2.18523891]
[1772140387762,2.27025811,86.029,86.003,2.18523891]
[1772140388460,3.32569309,86.02,86.003,2.18523891]
[1772140389167,2.69223003,86.07,86.043,48.53334987]
[1772140389351,2.69223003,86.07,86.03,3.32569309]
[1772140389352,3.52569309,86.07,86.03,3.32569309]
[1772140389551,2.49223003,86.069,86.031,0.02069799]
[1772140389766,2.49223003,86.069,86.032,0.02069799]
[1772140390065,2.49223003,86.069,86.007,3.69383402]
[1772140390066,2.49223003,86.049,86.02,11.62520344]
[1772140391866,2.49223003,86.049,86.012,0.0409015]
[1772140392364,2.49223003,86.047,86.012,0.0409015]
[1772140392871,0.2,86.07,86.012,0.0409015]
[1772140392872,2.49223003,86.065,86.022,0.05082955]
[1772140393049,2.49223003,86.059,86.021,0.05082955]
[1772140394157,2.49223003,86.057,86.021,0.05082955]
[1772140394956,2.49223003,86.057,86.014,0.05457152]
[1772140395462,2.49223003,86.057,86.02,3.32569309]
[1772140396866,2.49223003,86.057,86.021,11.62506829]
[1772140397075,2.49223003,86.057,86.021,11.66770415]
[1772140397370,2.49223003,86.055,86.021,11.66770415]
[1772140399276,2.49223003,86.055,86.022,0.03097281]
[1772140400178,2.49223003,86.055,86.031,0.02524156]
[1772140400372,2.49223003,86.068,86.031,0.02524156]
[1772140400960,0.2,86.07,86.05,3.32569309]
[1772140402090,0.2,86.07,86.04,3.32569309]
[1772140402380,2.49223003,86.068,86.03,3.32569309]